Cogmind - Beta 14 @@@ ROGUE MODE // 2025.03.06 @ 12:19:44 Player: mix Result: Destroyed self with YOLO Cannon Performance ------------- Evolutions (0) 0 Regions Visited (4) 800 Robots Destroyed (38) 190 Value Destroyed (878) 878 Prototype IDs (23) 460 Alien Tech Used (0) 0 Bonus (76) 76 TOTAL SCORE: 2404 Bonus ------- Aligned with FarCom 300 Friendly Fire -224 Cogmind --------- Core Integrity 0/250 Matter 300/300 Energy 180/250 System Corruption 0% Temperature Cool (20) Movement Walking (190) Ox1 Location -9/Mines Parts ------- > --- POWER (1) -------- Ion Engine > --- PROPULSION (2) --- Aluminum Leg Carbon-fiber Leg > --- UTILITY (2) ------ Medium Storage Unit Light Armor Plating > --- WEAPON (2) ------- YOLO Cannon > --- INVENTORY (10) --- Light Nuclear Core Improved Heat Sink Huge Storage Unit Improved Targeting Computer Hacking Suite Particle Gun Beam Cannon Beam Cannon Assault Rifle Rocket Launcher Peak State ------------ > --- POWER ------------ Ion Engine > --- PROPULSION ------- Aluminum Leg Carbon-fiber Leg > --- UTILITY ---------- Medium Storage Unit Signal Interpreter > --- WEAPON ----------- YOLO Cannon > --- INVENTORY -------- Light Nuclear Core Improved Heat Sink Huge Storage Unit Light Armor Plating Hacking Suite Particle Gun Assault Rifle Rocket Launcher [Rating: 28] Favorites ----------- Power Ion Engine Engine Ion Engine Power Core Light Nuclear Core Propulsion Light Treads Treads Light Treads Leg Aluminum Leg Wheel Wheel Utility Signal Interpreter Storage Medium Storage Unit Processor Signal Interpreter Protection Light Armor Plating Weapon Beam Cannon Energy Gun Medium Laser Energy Cannon Beam Cannon Ballistic Gun Assault Rifle Launcher Rocket Launcher Build | -11 -10 -10 -10 -9 ------- Run | Yrd Mat Min Exi Min Slots Evolved . | . . . . . Power . | . . . . . Propulsion . | . . . . . Utility . | . . . . . Weapon . | . . . . . Parts Attached 29 | 6 12 9 1 1 Power 5 | 1 1 3 . . Engine 3 | 1 . 2 . . Core 2 | . 1 1 . . Reactor . | . . . . . Propulsion 7 | 2 2 3 . . Treads 3 | 2 1 . . . Leg 2 | . . 2 . . Wheel 2 | . 1 1 . . Hover . | . . . . . Flight . | . . . . . Utility 6 | 1 1 3 . 1 Device . | . . . . . Storage 4 | 1 . 3 . . Processor 1 | . 1 . . . Hackware . | . . . . . Protection 1 | . . . . 1 Artifact . | . . . . . Weapon 11 | 2 8 . 1 . Energy Gun 4 | 1 3 . . . Energy Cannon 3 | . 2 . 1 . Ballistic Gun 3 | 1 2 . . . Ballistic Cannon . | . . . . . Launcher 1 | . 1 . . . Special Weapon . | . . . . . Impact Weapon . | . . . . . Slashing Weapon . | . . . . . Piercing Weapon . | . . . . . Special Melee Weapon . | . . . . . Unidentified Prototypes . | . . . . . Parts Lost 10 | . 6 4 . . Power 2 | . 1 1 . . Propulsion 5 | . 2 3 . . Utility . | . . . . . Weapon 3 | . 3 . . . Highest Loss Streak 3 | . 3 1 . . To Critical Strikes . | . . . . . Average Slot Usage (%) 90 | . 76 99 90 85 Engine 11 | . 5 12 14 14 Core 2 | . 8 1 . . Treads 11 | . 17 13 . . Leg 11 | . . 9 28 28 Wheel 2 | . 1 4 . . Storage 14 | . 14 14 14 14 Processor 9 | . . 14 14 . Energy Gun 3 | . 13 . . . Energy Cannon 18 | . 1 28 18 14 Ballistic Gun 2 | . 9 . . . Peak Build Rating 28 | 6 9 10 28 28 Average Rating 10 | 3 6 8 21 28 On Entrance 10 | . 6 9 10 28 Naked Turns . | . . . . . Heaviest Build 36 | 14 16 21 33 36 Greatest Support 40 | 40 40 25 25 25 Greatest Overweight (x) 5 | . 5 2 1 1 Average Overweight (x) . | . . 1 . 1 Largest Inventory Capacity 25 | 8 8 25 10 10 Average Capacity 9 | 7 8 9 10 10 Most Carried 10 | 5 6 10 10 10 Average Carried 6 | . 2 7 9 9 Final Capacity 10 | 8 8 10 10 10 Final Carried 10 | . 5 10 10 10 Class Distribution -------------------- 100% | Mutant Dominant Class ---------------- Mutant | -10/Materials Mutant | -10/Mines Mutant | -10/Exiles Mutant | -9/Mines Resources | -11 -10 -10 -10 -9 ----------- Run | Yrd Mat Min Exi Min Matter Collected 647 | 175 293 159 . 20 Remotely . | . . . . . Salvage Created 1136 | 19 540 540 . 37 Parts 61 | 1 32 26 . 2 Haulers Intercepted 1 | . 1 . . . Recyclers Shooed . | . . . . . Parts Field Recycled . | . . . . . Retrieved Matter . | . . . . . Parts Self-Destructed . | . . . . . Prevented . | . . . . . Kills | -11 -10 -10 -10 -9 ------- Run | Yrd Mat Min Exi Min Combat Hostiles Destroyed 27 | . 10 17 . . Guns 8 | . 8 . . . Cannons 17 | . . 17 . . AOE 1 | . 1 . . . Classes Destroyed 8 | 1 6 1 . . Worker 4 | . 4 . . . Builder 2 | . 2 . . . Tunneler 1 | 1 . . . . Hauler 1 | . 1 . . . Operator 1 | . 1 . . . Watcher 1 | . 1 . . . Swarmer 9 | . . 9 . . Grunt 19 | . 10 8 . 1 Best Kill Streak 5 | 1 5 3 . . Combat Bots Only 3 | . 3 3 . . Max Kills in Single Turn 2 | 1 2 1 . 1 Gunslinging . | . . . . . Exploded 1 | . 1 . . . Melee . | . . . . . Uniques/NPCs Destroyed . | . . . . . Combat | -11 -10 -10 -10 -9 -------- Run | Yrd Mat Min Exi Min Hostile Shots Fired 122 | . 60 62 . . Missed 22 | . 8 14 . . Damage Taken 1360 | . 746 554 . 60 Core 260 | . 94 136 . 30 Absorbed by Shields . | . . . . . Core Remaining (%) 100 | 100 . . . . Volleys Fired 94 | 1 58 34 . 1 Largest 2 | 2 2 2 . 1 Hottest 120 | 70 90 120 . 100 Shots Fired 180 | 2 109 68 . 1 Gun 102 | 2 100 . . . Cannon 69 | . . 68 . 1 Launcher 9 | . 9 . . . Special . | . . . . . Kinetic 31 | 1 30 . . . Thermal 135 | 1 65 68 . 1 Explosive 9 | . 9 . . . Electromagnetic 5 | . 5 . . . Robot Hit Streak 10 | 2 10 6 . . Robot Miss Streak 4 | . 4 3 . . Penetration Max . | . . . . . Secondary Targets . | . . . . . Shots Hit Robots 118 | 2 78 38 . . Core Hits 58 | 1 36 20 . 1 Critical Kills . | . . . . . Critical Parts Destroyed . | . . . . . Critical Strikes 4 | . 4 . . . Burn 4 | . 4 . . . Melee Attacks . | . . . . . Impact . | . . . . . Slashing . | . . . . . Piercing . | . . . . . Sneak Attacks . | . . . . . Combat Hostiles . | . . . . . Follow-up Attacks . | . . . . . Damage Inflicted 2060 | 27 1229 680 . 124 Guns 937 | 27 910 . . . Cannons 804 | . . 680 . 124 Explosions 319 | . 319 . . . Melee . | . . . . . Ramming . | . . . . . Kinetic 291 | 14 277 . . . Thermal 1414 | 13 597 680 . 124 Explosive 319 | . 319 . . . Electromagnetic 36 | . 36 . . . Impact . | . . . . . Slashing . | . . . . . Piercing . | . . . . . Highest Corruption . | . . . . . Average Corruption . | . . . . . Corruption Purged . | . . . . . Corruption Blocked . | . . . . . Overload Shots . | . . . . . Overflow Damage 41 | . 33 8 . . Projectiles 8 | . . 8 . . Explosions 33 | . 33 . . . Melee . | . . . . . Knockbacks . | . . . . . Impact . | . . . . . Kinetic . | . . . . . Secondary . | . . . . . Self-Inflicted Damage 132 | . 72 . . 60 Shots 3 | . 2 . . 1 Rammed . | . . . . . Targets Rammed . | . . . . . Kicked . | . . . . . Crushed . | . . . . . Highest Temperature 351 | 9 335 351 . . Average Temperature 132 | 6 119 147 . . Received Heat Transfer 570 | . 402 168 . . Effects 4 | . 2 2 . . Energy Bleed 2 | . 1 1 . . Interference 1 | . 1 . . . Damage (minor) 1 | . . 1 . . Siege Activations . | . . . . . Robots Corrupted . | . . . . . Combat Hostiles . | . . . . . Parts Fried . | . . . . . Impact Corruptions . | . . . . . Robots Melted 1 | . 1 . . . Combat Hostiles 1 | . 1 . . . Parts Melted 12 | . 5 7 . . Heat Transferred 3502 | 37 1942 1443 . 80 Parts Sabotaged . | . . . . . Parts Stolen . | . . . . . Parts Stripped . | . . . . . Power Chain Reactions . | . . . . . Alert | -11 -10 -10 -10 -9 ------- Run | Yrd Mat Min Exi Min Peak Influence 343 | 5 194 343 . . Initial 53 | . 3 53 . . Average 127 | . 79 173 . . Maximum Alert Level 1 | . . 1 . . Low Security (%) 71 | 100 100 52 . 100 Level 1 28 | . . 47 . . Level 2 . | . . . . . Level 3 . | . . . . . Level 4 . | . . . . . Level 5 . | . . . . . High Security . | . . . . . Max Security . | . . . . . Squads Dispatched 2 | . 2 . . . Investigation 1 | . 1 . . . Extermination . | . . . . . Reinforcement 1 | . 1 . . . Assault . | . . . . . Garrison . | . . . . . Intercept . | . . . . . Searches Triggered . | . . . . . Construction Impeded . | . . . . . Haulers Reinforced . | . . . . . Active Scanning Responses . | . . . . . Cargo Convoy Interrupts . | . . . . . Stealth | -11 -10 -10 -10 -9 --------- Run | Yrd Mat Min Exi Min Distress Signals 1 | . 1 . . . Communications Jammed . | . . . . . Distress Signals . | . . . . . Times Spotted 38 | . 19 19 . . Peak Tracking Total 5 | . 5 4 . . Tactical Retreats 2 | . . 2 . . Traps | -11 -10 -10 -10 -9 ------- Run | Yrd Mat Min Exi Min Traps Triggered 1 | . 1 . . . Indirectly . | . . . . . Trap Hack Attempts . | . . . . . Triggered . | . . . . . Disarmed . | . . . . . Reprogrammed . | . . . . . Reused . | . . . . . Traps Extracted . | . . . . . Installed . | . . . . . Triggered . | . . . . . Machines | -11 -10 -10 -10 -9 ---------- Run | Yrd Mat Min Exi Min Machines Disabled 3 | . 2 1 . . Max in Single Turn 1 | . 1 1 . . Machines Repaired . | . . . . . Machines Dismantled . | . . . . . Machines Sabotaged . | . . . . . Overloaded Fab Kills . | . . . . . Hacking | -11 -10 -10 -10 -9 --------- Run | Yrd Mat Min Exi Min Machines Accessed 5 | . 1 1 3 . Terminals 1 | . 1 . . . Fabricators . | . . . . . Repair Stations . | . . . . . Recycling Units . | . . . . . Scanalyzers . | . . . . . Garrison Access . | . . . . . Total Hacks 15 | . 9 1 5 . Successful 9 | . 3 1 5 . Failed 6 | . 6 . . . Catastrophic . | . . . . . Database Lockouts . | . . . . . Manual 6 | . 5 . 1 . Terminals 9 | . 9 . . . Fabricators . | . . . . . Repair Stations . | . . . . . Recycling Units . | . . . . . Scanalyzers . | . . . . . Garrison Access . | . . . . . Terminal Hacks 6 | . . 1 5 . Record 4 | . . . 4 . Open Door 1 | . . 1 . . Derelict Proto ID Bank 1 | . . . 1 . Fabricator Hacks . | . . . . . Repair Station Hacks . | . . . . . Recycling Unit Hacks . | . . . . . Scanalyzer . | . . . . . Garrison Access Hacks . | . . . . . Unauthorized Hacks 3 | . 3 . . . Terminals 3 | . 3 . . . Assimilate 1 | . 1 . . . Botnet 1 | . 1 . . . Operators 1 | . 1 . . . Fabricators . | . . . . . Repair Stations . | . . . . . Recycling Units . | . . . . . Scanalyzers . | . . . . . Garrison Access . | . . . . . Data Cores Recovered . | . . . . . Used . | . . . . . Hacking Detections 1 | . 1 . . . Full Trace Events 1 | . 1 . . . Feedback Events . | . . . . . Feedback Blocked . | . . . . . Robot Schematics Acquired . | . . . . . Robots Built . | . . . . . Authchips . | . . . . . Time . | . . . . . Total Robot Build Rating . | . . . . . Part Schematics Acquired . | . . . . . Parts Built . | . . . . . Authchips . | . . . . . Time . | . . . . . Total Part Build Rating . | . . . . . Parts Repaired . | . . . . . Time . | . . . . . Parts Recycled . | . . . . . Recycled Matter . | . . . . . Retrieved Matter . | . . . . . Retrieved Components . | . . . . . Parts Scanalyzed . | . . . . . Part Schematics Acquired . | . . . . . Parts Damaged . | . . . . . Bothacking | -11 -10 -10 -10 -9 ------------ Run | Yrd Mat Min Exi Min Used RIF Installer . | . . . . . Robots Hacked . | . . . . . Non-combat . | . . . . . Combat . | . . . . . Robot Hacks Applied . | . . . . . Relay Couplers Released . | . . . . . Fabnet Peak Effective % . | . . . . . Robots Rewired . | . . . . . Allies Hacked . | . . . . . Hacks Repelled . | . . . . . Allies | -11 -10 -10 -10 -9 -------- Run | Yrd Mat Min Exi Min Total Allies 3 | . . 3 . . Largest Group 3 | . . 3 1 1 Highest-Rated Group 40 | . . 40 16 16 Highest-Rated Ally 16 | . . 16 16 16 Total Orders . | . . . . . Ally Attacks 2 | . . 2 . . Total Damage 16 | . . 16 . . Kills . | . . . . . Allies Corrupted . | . . . . . Allies Melted . | . . . . . Intel | -11 -10 -10 -10 -9 ------- Run | Yrd Mat Min Exi Min Robot Analysis Total . | . . . . . Derelict Logs Recovered 1 | . . 1 . . Drone Launches . | . . . . . Drone Recoveries . | . . . . . Exploration | -11 -10 -10 -10 -9 ------------- Run | Yrd Mat Min Exi Min Turns Passed 2646 | 62 689 1337 398 160 Spaces Moved 1339 | 38 281 702 249 69 Core 43 | 16 27 . . . Treads 568 | 22 228 318 . . Legs 388 | . . 70 249 69 Wheels 340 | . 26 314 . . Hover . | . . . . . Flight . | . . . . . Fastest Speed 50 | 50 95 95 120 190 Average Speed 164 | 113 167 166 157 190 Slowest Speed 300 | 160 300 260 190 190 Overloaded Moves . | . . . . . Propulsion Burnouts . | . . . . . Robots Hopped . | . . . . . Cave-ins Triggered . | . . . . . Exploration Rate (%) 44 | 4 52 99 60 9 Regions Visited 4 Branch Regions 3 Pre-discovered Areas 1 | . . 1 . . Known Exits Taken 3 | . 1 1 1 . Unknown Exits Taken 1 | 1 . . . . Scrap Searched 2 | . . 1 . 1 Spaces Dug . | . . . . . Terrain Destroyed 63 | . 32 17 . 14 Melee . | . . . . . Projectile . | . . . . . AOE 63 | . 32 17 . 14 Terrain Rammed . | . . . . . Walls Destroyed . | . . . . . Machines Disabled . | . . . . . Actions | -11 -10 -10 -10 -9 --------- Run | Yrd Mat Min Exi Min Total 1601 | 56 389 802 256 98 Wait 99 | . 25 48 . 26 Move 1335 | 37 280 701 248 69 Hop . | . . . . . Pick Up 35 | 9 13 9 3 1 Fast Attach . | . . . . . Attach 18 | 6 7 4 1 . Detach . | . . . . . Swap 11 | . 5 5 . 1 Drop 9 | 3 1 1 4 . Fire 94 | 1 58 34 . 1 Melee . | . . . . . Ram . | . . . . . Kick . | . . . . . Crush . | . . . . . Escape Stasis . | . . . . . Rewire . | . . . . . Trap . | . . . . . Miscellaneous . | . . . . . Route ------- -11/Scrapyard -10/Materials (discovered 2 exits: *Mat / *Min) -10/Mines (discovered 3 exits: *Mat x2 / *Exi) -10/Exiles -9/Mines History --------- Turn | Location | Event 14 | -11/Scrapyard | Discovered new exit (range 15) 63 | -11/Scrapyard | Entered Materials 306 | -10/Materials | Discovered new exit (range 3) 314 | -10/Materials | Build established: Mutant 491 | -10/Materials | Discovered new exit (range 6) 595 | -10/Materials | Lost 3 parts (1n2w) 751 | -10/Materials | Identified exit to Mines 752 | -10/Materials | Entered Mines 753 | -10/Mines | Learned location of Storage (-9) 833 | -10/Mines | Core integrity fell below 50% 955 | -10/Mines | Discovered new exit (range 5) 958 | -10/Mines | Identified exit to Materials 1004 | -10/Mines | Discovered exit to Materials (range 5) 1004 | -10/Mines | Learned 2 Materials zone layouts 1161 | -10/Mines | Core integrity fell below 20% 1264 | -10/Mines | Assisted by bots powering up and referring to "LRC-V3" 1306 | -10/Mines | Met a Derelict who couldn't figure out how to use a Trap Extractor 1348 | -10/Mines | Found a damaged Exp. Sensor Array with a note attached 1920 | -10/Mines | Deemed a non-threat by the Exiles lab entrance 1920 | -10/Mines | Discovered new exit (range 5) 2088 | -10/Mines | Identified exit to Exiles 2089 | -10/Mines | Entered Exiles 2089 | -10/Exiles | Accompanied by 1 ally 2117 | -10/Exiles | Met 8R-AWN 2140 | -10/Exiles | Met EX-HEX 2172 | -10/Exiles | Met EX-BIN 2189 | -10/Exiles | Aligned with FarCom system 2190 | -10/Exiles | Given EX-Vault access code 2218 | -10/Exiles | Opened EX-Vault 2227 | -10/Exiles | Found YOLO Cannon 2276 | -10/Exiles | Warned to stay clear of 0b10 Research branches 2401 | -10/Exiles | Met EX-DEC 2470 | -10/Exiles | Discovered new exit (range 10) 2485 | -10/Exiles | Identified exit to Mines 2487 | -10/Exiles | Left Exiles lab with YOLO Cannon 2487 | -10/Exiles | Entered Mines 2487 | -9/Mines | Accompanied by 1 ally 2647 | -9/Mines | Destroyed self with YOLO Cannon Last Messages --------------- and fire it for us so we can observe it in all its glory? Just imagine what it would do to a squad of Grunts. EX-DEC: Ah I see we have a visitor. One wrong move in here and I'll invert your atomic chain! EX-DEC: "Oops, I hope HEX didn't hear that..." EXIT=FOUND EXIT=IDENTIFIED: MINES LOCATION=MINES GOAL=ESCAPE Receiving FarCom transmissions... Discarded Signal Interpreter. Searching scrap... Found Imp. Targeting Computer. Found Autogun. Found 38 Matter. Acquired 20 matter. Acquired Imp. Targeting Computer. Trooper 1b destroyed. Map ----- +----------------------------------------------------+ | | | | | | | | | | | | | | | | | | | | | | | | | ???????????????????????????? | | ???????????????????????????? | | ???????????????????????????? | | ???????????????????????????? | | ???????????????????????????? | | ???????????????????????????? | | ???????????????????????????? | | ???????????????????????????? | | ???????????????????????????? | | ???####?#??????????????????? | | ??## ;;#####??????????????? | | ?## t g??g????????????? | | ?#; = ;;#?????????????????? | | ?#;@ =;;#?????????????????? | | ?#; ;####??????????????? | | ?##; % #??????????????? | | ??#;; ;###[#??????????????? | | ??######??# #??????????????? | | ??????????# #??????????????? | | ??????????# #??????????????? | | ??????????# #??????????????? | | ??????????# #??????????????? | | ??????????# #??????????????? | | ??????????# #??????????????? | | ??????????# #??????????????? | | ??????????# #??????????????? | | ??????????# #??????????????? | | ??????????# #??????????????? | | ??????????# #??????????????? | | ??####????# #??????????????? | | ?## #????# #??????????????? | | ?# #????# #??????????????? | | ?# #????# #??????????????? | | ?## #????# #??????????????? | | ??# ##???# #??????????????? | | ?## ##### ######?????????? | | ?# #?????????? | | ?# ###### ## ??? | +----------------------------------------------------+ Best States ------------- Heat Dissipation 25 Energy Generation 14 Energy Capacity 250 Matter Stores 300 Matter Capacity 300 Sight Range 16 Terrain Scan Density 10 Armor Coverage 150 Evasion (%) 55 Recoil Reduction 2 Item Schematics ----------------- None Robot Schematics ------------------ None Fabricated ------------ Nothing Alien Tech Used ----------------- None Achievements -------------- None Challenges ------------ None Game ------ Seed LegCompactFacilitator Manual? 0 Play Time 00:16:15 Cumulative 56.0 hours Start 2025.03.06 @ 12:02:49 End 2025.03.06 @ 12:19:44 Sessions 1 Manual Loads 0 Difficulty Rogue Special Mode None Game No. 76 Rogue 62 Adventurer 14 Explorer 0 Win Type - Total 0 Types 0/0/0/0/0/0/0/0/0 Lore% 20 Gallery% 40 Achievement% 37 Wizard Run 0 Options --------- Layout 1 ASCII 0 Keyboard 0 Movement Mouse Keybinds 0 Fullscreen 1 Font 24/Smallcaps Map View 50x35 Zoom Use 8% Tactical HUD 0 Map Filters NONE Filters NONE Steam 1 RUN: 4cabe243-df90-4bc6-8b1b-50b46501e0ea